bitfinex/quotes_SOLUSD_20240905
["timestamp","ask_amount","ask_price","bid_price","bid_amount"]
[1725540076608,7.5228,132.93,132.88,7.5254]
[1725540076813,9.0241992,132.93,132.89,9.02954622]
[1725540076997,7.5228,132.93,132.89,9.02954622]
[1725540077307,15.4136992,132.94,132.89,7.5248]
[1725540077512,1.5013992,132.94,132.9,9.02902688]
[1725540077820,7.5232,132.93,132.89,26.3364]
[1725540078136,7.5223,132.94,132.89,26.3364]
[1725540079022,16.6653,132.97,132.86,26.3423]
[1725540079023,1.5013992,132.93,132.86,26.3423]
[1725540079212,7.5252,132.89,132.83,18.8205]
[1725540080716,7.5273,132.85,132.81,7.5293]
[1725540081015,20.3164992,132.88,132.8,26.3545]
[1725540081215,7.5273,132.85,132.8,26.3545]
[1725540081411,60.7954,132.89,132.81,7.5294]
[1725540081412,7.5268,132.86,132.81,7.5294]
[1725540081716,60.7954,132.89,132.82,18.8218]
[1725540081920,27.526,132.88,132.83,7.5283]
[1725540082120,27.526,132.88,132.83,9.03364581]
[1725540082331,27.526,132.88,132.84,7.5278]
[1725540082626,29.0273992,132.88,132.84,7.5278]
[1725540082920,20.0,132.88,132.84,7.5278]
[1725540083128,1.5013992,132.87,132.83,7.5283]
[1725540083303,9.0278992,132.87,132.82,26.3503]
[1725540083503,9.0278992,132.87,132.83,7.5283]
[1725540083703,7.5265,132.87,132.83,7.5283]
[1725540084612,29.0270992,132.88,132.83,7.5283]
[1725540086007,20.0,132.88,132.84,7.5277]
[1725540086223,1.5013992,132.89,132.84,18.8191]
[1725540086414,29.0267992,132.89,132.84,26.3465]
[1725540086720,20.0,132.89,132.85,9.03199879]
[1725540086928,1.5013992,132.92,132.88,7.5255]
[1725540087094,7.5229,132.93,132.89,9.02966399]
[1725540087297,7.5222,132.94,132.88,18.8131]
[1725540087519,7.7080992,132.95,132.91,7.5237]
[1725540087822,7.7080992,132.95,132.88,18.8131]
[1725540088198,15.2300992,132.95,132.88,18.8131]
[1725540088430,15.2300992,132.95,132.9,7.5243]
[1725540088722,15.2300992,132.95,132.88,18.8131]
[1725540088723,7.5222,132.94,132.89,7.5248]
[1725540089017,9.0241992,132.93,132.89,7.5248]
[1725540089221,1.5013992,132.92,132.89,7.5248]
[1725540089394,1.5013992,132.93,132.88,18.8131]
[1725540089598,6.2067,132.95,132.88,26.3385]
[1725540089599,9.0247992,132.92,132.88,26.3385]
[1725540089829,9.0253992,132.91,132.87,7.526]
[1725540090126,9.0253992,132.91,132.86,7.5265]
[1725540090127,7.524,132.91,132.86,7.5265]
[1725540090300,7.5255,132.89,132.85,18.8173]
[1725540090807,9.0272992,132.88,132.83,7.5282]
[1725540091006,7.5252,132.89,132.82,18.8218]
[1725540091209,7.5245,132.9,132.86,7.5266]
[1725540091426,7.5242,132.91,132.82,37.6427]
[1725540091804,7.5242,132.91,132.83,1.50503488]
[1725540092122,1.5013992,132.9,132.83,1.50503488]
[1725540092426,1.5013992,132.9,132.86,26.3429]
[1725540093009,46.5013992,132.9,132.85,7.5271]
[1725540093228,7.5256,132.88,132.83,18.8203]
[1725540093430,9.0278992,132.87,132.83,18.8203]
[1725540094220,7.5265,132.87,132.83,18.8203]
[1725540094401,7.5265,132.87,132.83,26.3487]
[1725540094798,1.5013992,132.86,132.8,18.8247]
[1725540095102,7.5277,132.85,132.8,26.3546]
[1725540095305,7.5277,132.85,132.81,7.5294]
[1725540096226,1.5013992,132.86,132.8,18.8247]
[1725540096227,1.5013992,132.86,132.82,7.5287]
[1725540096602,13.9728,132.87,132.82,7.5287]
[1725540096806,1.5013992,132.88,132.84,7.5273]
[1725540097005,17.7059992,132.89,132.84,18.8189]
[1725540097208,20.0,132.88,132.84,26.3463]
[1725540097506,20.0,132.88,132.84,18.8189]
[1725540097707,1.5013992,132.91,132.89,7.5249]
[1725540097927,15.9939,132.93,132.89,7.5249]
[1725540097928,1.5013992,132.92,132.89,7.5249]
[1725540098138,9.0247992,132.92,132.88,18.8136]
[1725540098313,7.524,132.91,132.87,7.526]
[1725540099021,1.5013992,132.9,132.87,7.526]
[1725540099325,1.5013992,132.91,132.87,7.526]
[1725540100233,9.0252992,132.91,132.87,7.526]
[1725540100534,9.0252992,132.91,132.86,7.5265]
[1725540100929,9.0252992,132.91,132.87,7.5259]
[1725540101309,1.5013992,132.91,132.86,7.5266]
[1725540101622,66.5013992,132.92,132.86,7.5266]
[1725540102233,7.5243,132.91,132.87,7.526]
[1725540102535,20.0,132.92,132.88,7.5254]
[1725540103031,21.5013992,132.92,132.88,7.5254]
[1725540103333,20.0,132.92,132.88,7.5254]
[1725540103535,20.0,132.92,132.87,18.8147]
[1725540103536,20.0,132.92,132.89,9.02956102]
[1725540103716,13.7196,132.94,132.9,7.5244]
[1725540104425,9.0229992,132.95,132.91,1.50468742]
[1725540104626,9.0224992,132.96,132.91,7.5236]
[1725540104823,16.2916,132.97,132.91,18.809]
[1725540104824,17.7929992,132.97,132.91,18.809]
[1725540105037,16.2916,132.97,132.93,7.5223]
[1725540105227,1.5013992,132.96,132.92,7.5232]
[1725540105613,1.5013992,132.96,132.91,18.809]
[1725540105614,23.8122,132.97,132.93,7.5226]
[1725540105924,7.5194,132.99,132.94,9.02622601]
[1725540106125,1.5013992,133.0,132.95,1.5041192]
[1725540106434,18.0755992,133.01,132.93,1.50397285]
[1725540106610,16.5742,133.01,132.92,43.8988]
[1725540106817,18.0755992,133.01,132.97,7.5203]
[1725540107027,18.0755992,133.01,132.97,26.3208]
[1725540107211,18.0755992,133.01,132.96,7.5208]
[1725540107212,7.5189,133.0,132.96,7.5208]
[1725540107535,25.5938992,133.01,132.97,1.5038494]
[1725540107720,25.5938992,133.01,132.96,7.5208]
[1725540107918,7.5197,132.99,132.94,26.327]
[1725540108121,54.0202992,133.0,132.95,7.5214]
[1725540108436,7.5206,132.97,132.93,7.5226]
[1725540108625,1.5013992,132.96,132.92,7.5231]
[1725540109022,9.0224992,132.96,132.91,26.3327]
[1725540109230,1.5013992,132.95,132.91,26.3327]
[1725540109430,1.5013992,132.95,132.92,7.5232]
[1725540109633,1.5013992,132.95,132.91,26.3326]
[1725540109840,7.5211,132.96,132.91,26.3326]
[1725540110136,1.5013992,132.95,132.91,26.3326]
[1725540110343,7.5222,132.94,132.9,7.5242]
[1725540110655,29.0230992,132.95,132.9,7.5242]
[1725540110813,1.5013992,132.94,132.9,7.5242]
[1725540111142,27.5217,132.95,132.91,7.5238]
[1725540112439,20.0,132.95,132.91,7.5238]
[1725540112641,20.0,132.95,132.92,7.5232]
[1725540113524,20.0,132.96,132.92,7.5232]
[1725540113845,9.0212992,132.98,132.93,1.50429122]
[1725540114033,7.5199,132.98,132.92,18.8077]
[1725540114244,7.5199,132.98,132.93,1.50420762]
[1725540114821,9.0208992,132.99,132.95,7.5215]
[1725540115021,7.5195,132.99,132.95,7.5215]
[1725540115247,7.5195,132.99,132.94,7.522]
[1725540115437,1.5013992,132.98,132.94,7.522]
[1725540116331,9.0212992,132.98,132.94,7.522]
[1725540116527,7.5214,132.96,132.92,18.8077]
[1725540116744,7.5223,132.94,132.9,7.5243]
[1725540116947,9.0245992,132.93,132.89,18.8115]
[1725540117238,1.5013992,132.92,132.89,18.8115]
[1725540117442,7.5223,132.94,132.89,18.8115]
[1725540117648,7.5216,132.95,132.9,7.524]
[1725540117946,1.5013992,132.94,132.9,7.524]
[1725540118131,21.5013992,132.97,132.9,7.524]
[1725540118330,45.0,132.96,132.9,7.524]
[1725540118548,21.5013992,132.95,132.9,7.524]
[1725540119346,7.5222,132.94,132.9,7.524]
[1725540119726,29.0230992,132.95,132.91,7.5238]
[1725540119923,27.5217,132.95,132.91,7.5238]
[1725540120348,7.5217,132.95,132.91,7.5238]
[1725540120651,1.5013992,132.97,132.91,18.809]
[1725540120852,21.5013992,133.0,132.91,18.809]
[1725540121036,21.5013992,133.0,132.88,18.8132]
[1725540121452,7.5232,132.93,132.88,18.8132]
[1725540121771,7.5232,132.93,132.89,7.5246]
[1725540122056,7.5218,132.95,132.9,18.8107]
[1725540122257,9.0225992,132.96,132.91,7.5238]
[1725540122428,9.0231992,132.95,132.91,7.5238]
[1725540122627,7.5218,132.95,132.91,7.5238]
[1725540123238,7.5218,132.95,132.9,26.3349]
[1725540123441,7.5222,132.94,132.9,26.3349]
[1725540123848,7.5218,132.95,132.9,26.3349]
[1725540124061,7.5218,132.95,132.91,7.5236]
[1725540124960,1.5013992,132.99,132.92,7.5231]
[1725540125166,1.5013992,132.98,132.92,7.5231]
[1725540125341,21.5013992,132.98,132.91,7.5234]
[1725540125541,45.0,132.97,132.91,7.5234]
[1725540125759,21.5013992,132.96,132.91,7.5234]
[1725540125938,1.5013992,132.95,132.91,7.5234]
[1725540126265,1.5013992,132.95,132.9,18.8107]
[1725540126266,7.5229,132.93,132.9,18.8107]
[1725540126435,1.5013992,132.95,132.9,26.3347]
[1725540126635,9.0232992,132.95,132.9,26.3347]
[1725540127338,7.5224,132.94,132.9,18.8107]
[1725540127538,1.5013992,132.93,132.9,18.8107]
[1725540127753,1.5013992,132.93,132.87,18.8149]
[1725540127754,7.5243,132.91,132.87,18.8149]
[1725540127959,7.5243,132.91,132.87,26.3409]
[1725540128534,1.5013992,132.9,132.84,18.8185]
[1725540128747,7.5254,132.89,132.84,18.8185]
[1725540128945,7.5254,132.89,132.84,26.3459]
[1725540129242,1.5013992,132.92,132.84,7.5274]
[1725540129243,20.3099992,132.92,132.84,7.5274]
[1725540129450,7.5251,132.89,132.84,7.5274]
[1725540129647,7.5251,132.89,132.85,7.5271]
[1725540129873,1.5013992,132.88,132.85,7.5271]
[1725540130177,9.0264992,132.89,132.85,7.5271]
[1725540130940,7.5251,132.89,132.85,7.5271]
[1725540131242,9.0259992,132.9,132.86,7.5265]
[1725540131445,7.5246,132.9,132.86,7.5265]
[1725540131650,1.5013992,132.93,132.87,18.815]
[1725540131844,21.5013992,132.93,132.87,18.815]
[1725540132045,9.0250992,132.92,132.87,18.815]
[1725540132447,9.0250992,132.92,132.87,26.341]
[1725540132751,29.0250992,132.92,132.88,9.03018672]
[1725540132959,27.5237,132.92,132.88,9.03018672]
[1725540133549,9.0253992,132.91,132.87,26.341]
[1725540136664,27.5234,132.92,132.88,7.5254]
[1725540136866,20.0,132.92,132.89,9.02986115]
[1725540137066,21.5013992,132.92,132.87,26.341]
[1725540137264,7.525,132.89,132.84,18.8184]
[1725540137655,7.5246,132.9,132.84,18.8184]
[1725540138369,7.5246,132.9,132.85,1.50503755]
[1725540138669,7.5246,132.9,132.86,9.03123773]
[1725540138960,1.5013992,132.92,132.84,37.6374]
[1725540139170,7.5243,132.91,132.87,7.5257]
[1725540139469,9.0258992,132.9,132.86,7.5265]
[1725540139767,9.0246992,132.92,132.88,7.5254]
[1725540140347,7.5239,132.91,132.87,26.3408]
[1725540141965,7.5235,132.92,132.88,7.5255]
[1725540142150,7.5228,132.93,132.89,7.5248]
[1725540142351,20.0,132.92,132.89,7.5248]
[1725540142551,20.0,132.92,132.87,18.8149]
[1725540142552,20.0,132.92,132.88,7.525]
[1725540142745,29.0246992,132.92,132.88,7.525]
[1725540142956,29.0246992,132.92,132.87,26.3408]
[1725540143165,21.5013992,132.92,132.87,18.8149]
[1725540143353,7.524,132.91,132.87,18.8149]
[1725540143551,1.5013992,132.9,132.87,18.8149]
[1725540143758,1.5013992,132.9,132.81,121.03016555]
[1725540143759,7.5256,132.88,132.84,26.3461]
[1725540143963,1.5013992,132.87,132.81,18.8231]
[1725540144164,20.0,132.9,132.81,18.8231]
[1725540144165,7.5268,132.86,132.81,18.8231]
[1725540145061,7.5268,132.86,132.82,7.5286]
[1725540145254,7.5262,132.87,132.82,7.5286]
[1725540145448,1.5013992,132.86,132.82,7.5286]
[1725540146274,9.0282992,132.86,132.81,26.3525]
[1725540146574,1.5013992,132.85,132.78,18.8275]
[1725540146757,7.5288,132.83,132.78,26.3587]
[1725540147077,7.5295,132.81,132.75,18.8319]
[1725540147282,7.5291,132.82,132.77,7.5317]
[1725540147450,1.5013992,132.81,132.77,7.5317]
[1725540148346,7.5291,132.82,132.77,7.5317]
[1725540148771,15.4222,132.8,132.71,18.8371]
[1725540148955,46.5013992,132.79,132.73,7.534]
[1725540149156,7.5317,132.78,132.73,7.534]
[1725540149364,1.5013992,132.77,132.73,7.534]
[1725540149773,9.0330992,132.78,132.73,7.534]
[1725540150078,1.5013992,132.78,132.74,7.5335]
[1725540150379,21.5013992,132.78,132.74,7.5335]
[1725540150745,15.4222,132.8,132.77,7.5318]
[1725540151264,7.529,132.82,132.77,7.5318]
[1725540151461,1.5013992,132.81,132.77,7.5318]
[1725540152566,21.5013992,132.81,132.77,7.5318]
[1725540153869,29.0308992,132.81,132.77,7.5318]
[1725540154074,27.5295,132.81,132.77,7.5318]
[1725540154654,1.5013992,132.8,132.77,7.5318]
[1725540154976,1.5013992,132.8,132.76,7.5323]
[1725540155164,9.0316992,132.8,132.76,7.5323]
[1725540155348,1.5013992,132.79,132.76,7.5323]
[1725540155555,66.5013992,132.79,132.72,18.8359]
[1725540155757,53.0926992,132.79,132.72,18.8359]
[1725540155961,53.0926992,132.79,132.69,18.8401]
[1725540155962,15.0711,132.77,132.69,18.8401]
[1725540156260,46.5013992,132.76,132.69,18.8401]
[1725540156575,7.5347,132.72,132.66,18.8444]
[1725540156780,7.5347,132.72,132.67,7.537]
[1725540158265,1.5013992,132.75,132.68,18.8416]
[1725540158451,7.5341,132.73,132.69,7.5362]
[1725540158650,21.5013992,132.75,132.65,18.8459]
[1725540158651,1.5013992,132.72,132.65,18.8459]
[1725540158975,7.5353,132.71,132.67,7.5374]
[1725540159155,1.5013992,132.7,132.67,7.5374]
[1725540159872,1.5013992,132.7,132.65,18.8459]
[1725540159873,9.0372992,132.7,132.65,26.384]
[1725540160272,9.0372992,132.7,132.62,56.5512]
[1725540160273,20.0,132.69,132.62,56.5512]
[1725540160480,1.5013992,132.68,132.62,56.5512]
[1725540160697,1.5013992,132.68,132.63,7.5396]
[1725540160986,7.5381,132.66,132.62,26.3903]
[1725540161158,1.5013992,132.65,132.62,18.8501]
[1725540161864,1.5013992,132.66,132.62,18.8501]
[1725540162169,9.0397992,132.66,132.62,18.8501]
[1725540162374,9.0388992,132.67,132.62,26.3899]
[1725540162879,9.0388992,132.67,132.63,7.5397]
[1725540163068,1.5013992,132.67,132.63,7.5397]
[1725540163479,1.5013992,132.67,132.62,18.8501]
[1725540163480,15.6491,132.7,132.64,18.8474]
[1725540163677,1.5013992,132.69,132.64,18.8474]
[1725540164269,1.5013992,132.73,132.65,1.50729529]
[1725540164473,1.5013992,132.71,132.66,18.8445]
[1725540165069,15.1417992,132.72,132.67,7.5373]
[1725540165564,1.5013992,132.73,132.66,37.6897]
[1725540165779,1.5013992,132.73,132.7,7.5356]
[1725540165984,1.5013992,132.73,132.7,26.3746]
[1725540166176,1.5013992,132.73,132.64,38.15456555]
[1725540166864,46.5013992,132.73,132.64,38.15456555]
[1725540167067,46.5013992,132.73,132.69,7.5361]
[1725540167988,54.0354992,132.73,132.69,7.5361]
[1725540168199,7.5346,132.72,132.68,26.3785]
[1725540168388,1.5013992,132.72,132.68,26.3785]
[1725540169485,22.7678,132.74,132.69,7.5358]
[1725540169664,1.5013992,132.73,132.69,7.5358]
[1725540169875,7.5347,132.72,132.68,26.3786]
[1725540170190,66.5013992,132.73,132.63,61.7736]
[1725540170191,7.5359,132.7,132.65,26.3838]
[1725540170561,7.5359,132.7,132.66,7.538]
[1725540170978,83.8357,132.73,132.65,26.3841]
[1725540170979,54.0377992,132.69,132.65,26.3841]
[1725540171288,7.5359,132.7,132.66,7.538]
[1725540171490,1.5013992,132.69,132.66,7.538]
[1725540173285,1.5013992,132.72,132.65,18.8456]
[1725540173468,9.0360992,132.72,132.68,7.5369]
[1725540173676,20.0,132.71,132.68,7.5369]
[1725540175164,9.0355992,132.73,132.69,7.5362]
[1725540175490,20.0,132.72,132.69,7.5362]
[1725540175712,20.0,132.72,132.68,7.5367]
[1725540175890,1.5013992,132.71,132.68,7.5367]
[1725540177091,29.0360992,132.72,132.68,7.5367]
[1725540177501,7.5353,132.71,132.67,18.8433]
[1725540177786,7.5364,132.69,132.65,7.5382]
[1725540177992,9.0372992,132.7,132.65,7.5382]
[1725540178173,9.0372992,132.7,132.64,18.8473]
[1725540178174,9.0372992,132.7,132.66,7.538]
[1725540178583,1.5013992,132.69,132.66,7.538]
[1725540178787,20.0,132.72,132.66,7.538]
[1725540178788,9.0367992,132.71,132.67,7.5373]
[1725540178988,21.5013992,132.7,132.67,7.5373]
[1725540179389,21.5013992,132.7,132.66,26.3824]
[1725540179776,29.0375992,132.7,132.66,18.8446]
[1725540180098,1.5013992,132.69,132.66,18.8446]
[1725540181808,1.5013992,132.69,132.64,7.539]
[1725540182100,1.5013992,132.69,132.65,18.8462]
[1725540183400,1.5013992,132.69,132.66,7.5379]
[1725540183701,9.0372992,132.7,132.66,7.5379]
[1725540183901,1.5013992,132.73,132.67,18.8433]
[1725540185179,7.5347,132.72,132.68,7.5365]
[1725540185704,1.5013992,132.73,132.69,7.5362]
[1725540185705,9.0354992,132.73,132.69,7.5362]
[1725540185901,20.0,132.72,132.69,7.5362]
[1725540186503,29.0360992,132.72,132.68,7.5367]
[1725540186705,29.0360992,132.72,132.69,7.5362]
[1725540186706,21.5013992,132.72,132.69,7.5362]
[1725540186998,1.5013992,132.73,132.7,7.5355]
[1725540188224,1.5013992,132.73,132.69,18.8405]
[1725540188704,7.5347,132.72,132.69,18.8405]
[1725540189003,1.5013992,132.71,132.69,18.8405]
[1725540189209,1.5013992,132.73,132.69,26.3766]
[1725540189498,66.5013992,132.73,132.66,18.8439]
[1725540190211,7.5353,132.71,132.66,26.3816]
[1725540190395,1.5013992,132.7,132.66,26.3816]
[1725540190597,1.5013992,132.7,132.67,7.5374]
[1725540191895,65.0,132.73,132.69,7.5363]
[1725540192103,6.6633,132.75,132.71,7.5352]
[1725540192404,8.1646992,132.75,132.71,7.5352]
[1725540193906,1.5013992,132.75,132.71,7.5352]
[1725540194100,1.5013992,132.75,132.72,7.5346]
[1725540194408,1.5013992,132.76,132.72,7.5346]
[1725540195412,21.5013992,132.76,132.72,7.5346]
[1725540197001,45.0,132.75,132.68,18.8414]
[1725540197207,1.5013992,132.74,132.68,18.8414]
[1725540197412,29.0352992,132.74,132.69,7.5362]
[1725540197713,1.5013992,132.73,132.69,7.5362]
[1725540197908,29.0352992,132.74,132.7,7.5356]
[1725540198110,21.5013992,132.74,132.71,7.5351]
[1725540198307,20.0,132.75,132.72,7.5345]
[1725540198509,20.0,132.75,132.73,7.5338]
[1725540198723,21.5013992,132.76,132.72,26.3705]
[1725540199021,29.0338992,132.76,132.72,26.3705]
[1725540200121,21.5013992,132.76,132.72,26.3705]
[1725540200320,9.0323992,132.79,132.74,7.5329]
[1725540200511,7.5314,132.78,132.73,7.534]
[1725540200704,9.0321992,132.79,132.74,7.5334]
[1725540200898,9.0321992,132.79,132.75,7.5328]
[1725540201119,1.5013992,132.79,132.77,7.5318]
[1725540201427,1.5013992,132.8,132.76,26.3623]
[1725540202426,9.0314992,132.8,132.76,26.3623]
[1725540202622,1.5013992,132.79,132.76,18.83]
[1725540202833,9.0320992,132.79,132.76,18.83]
[1725540203001,1.5013992,132.79,132.71,7.535]
[1725540203320,6.6127,132.78,132.66,23.0581]
[1725540203524,7.5345,132.73,132.68,7.5368]
[1725540203824,1.5013992,132.72,132.68,7.5368]
[1725540204118,1.5013992,132.72,132.67,26.3805]
[1725540204322,7.5353,132.71,132.67,26.3805]
[1725540204522,1.5013992,132.7,132.67,26.3805]
[1725540205224,1.5013992,132.7,132.67,18.8432]
[1725540205415,6.2913,132.71,132.64,18.8473]
[1725540205605,7.537,132.68,132.64,18.8473]
[1725540205803,21.5013992,132.67,132.64,18.8473]
[1725540206704,20.0,132.67,132.64,26.3864]
[1725540207309,7.5365,132.69,132.64,26.3864]
[1725540207310,21.5013992,132.68,132.64,26.3864]
[1725540207728,20.0,132.68,132.65,9.04620647]
[1725540207936,20.0,132.69,132.65,9.04620647]
[1725540208254,20.0,132.69,132.65,7.5386]
[1725540209019,20.0,132.69,132.66,20.35193936]
[1725540209336,20.0,132.7,132.66,18.8445]
[1725540209535,20.0,132.7,132.66,26.3824]
[1725540209743,29.0374992,132.7,132.66,18.8445]
[1725540210644,9.0377992,132.69,132.65,7.5385]
[1725540211154,1.5013992,132.69,132.65,7.5385]
[1725540211509,21.5013992,132.69,132.65,7.5385]
[1725540212150,20.0,132.69,132.65,7.5385]
[1725540212315,20.0,132.69,132.66,7.538]
[1725540214348,20.0,132.69,132.65,18.8457]
[1725540214522,20.0,132.7,132.68,7.5369]
[1725540214720,29.0365992,132.71,132.67,26.3802]
[1725540214923,1.5013992,132.7,132.67,26.3802]
[1725540215437,9.0371992,132.7,132.65,7.5382]
[1725540215624,9.0371992,132.7,132.66,7.5379]
[1725540217036,1.5013992,132.7,132.67,7.5371]
[1725540217414,21.5013992,132.7,132.67,7.5371]
[1725540218930,20.0,132.7,132.67,7.5371]
[1725540219237,20.0,132.7,132.68,7.5368]
[1725540219439,21.5013992,132.71,132.67,7.5373]
[1725540219646,29.0365992,132.71,132.67,7.5373]
[1725540219817,27.5352,132.71,132.67,7.5373]
[1725540220020,1.5013992,132.73,132.7,26.3738]
[1725540222034,29.9459,132.74,132.7,26.3738]
[1725540222234,1.5013992,132.73,132.7,26.3738]
[1725540222532,1.5013992,132.73,132.69,7.5363]
[1725540222533,9.0356992,132.73,132.69,7.5363]
[1725540222728,29.9459,132.74,132.7,7.5356]
[1725540222947,21.5013992,132.73,132.7,7.5356]
[1725540224634,20.0,132.73,132.7,7.5356]
[1725540224832,20.0,132.74,132.71,7.5352]
[1725540225751,20.0,132.74,132.72,7.5345]
[1725540225923,21.5013992,132.75,132.72,7.5345]
[1725540226128,21.5013992,132.76,132.72,7.5345]
[1725540226324,29.0337992,132.76,132.72,7.5345]
[1725540227136,21.5013992,132.76,132.72,7.5345]
[1725540228270,29.0337992,132.76,132.72,7.5345]
[1725540229343,21.5013992,132.76,132.74,7.5335]
[1725540229556,21.5013992,132.76,132.71,18.8377]
[1725540229929,21.5013992,132.76,132.72,7.5344]
[1725540230532,29.0337992,132.76,132.72,7.5344]
[1725540232745,20.0,132.76,132.73,7.534]
[1725540234256,20.0,132.76,132.74,7.5333]
[1725540234560,9.0321992,132.79,132.74,7.5333]
[1725540234761,9.0321992,132.79,132.7,30.62179495]
[1725540234762,1.5013992,132.79,132.75,18.8322]
[1725540235059,6.3529,132.82,132.71,53.1854]
[1725540235060,7.8542992,132.82,132.77,18.8293]
[1725540235265,1.5013992,132.82,132.77,18.8293]
[1725540235447,24.6602992,132.83,132.78,7.5311]
[1725540235636,1.5013992,132.82,132.78,7.5311]
[1725540236754,7.5297,132.81,132.77,26.3609]
[1725540236945,9.0315992,132.8,132.74,56.498]
[1725540237142,9.0315992,132.8,132.75,7.5328]
[1725540237143,1.5013992,132.79,132.75,7.5328]
[1725540237450,9.0320992,132.79,132.75,7.5328]
[1725540237644,7.5307,132.79,132.74,26.3661]
[1725540238863,1.5013992,132.82,132.74,26.3661]
[1725540239061,7.5313,132.78,132.74,26.3661]
[1725540239360,1.5013992,132.77,132.71,34.3479]
[1725540239553,7.5325,132.76,132.71,26.3716]
[1725540239748,7.5325,132.76,132.68,18.8413]
[1725540239749,1.5013992,132.75,132.68,18.8413]
[1725540239954,7.5348,132.72,132.68,26.3781]
[1725540240843,7.5342,132.73,132.68,26.3781]
[1725540243672,7.5348,132.72,132.68,26.3781]
[1725540243855,1.5013992,132.74,132.68,26.3781]
[1725540243856,7.5342,132.73,132.68,26.3781]
[1725540244875,7.5342,132.73,132.69,7.5363]
[1725540247875,9.0350992,132.74,132.7,1.50685503]
[1725540248074,9.0350992,132.74,132.69,7.5363]
[1725540248480,7.5337,132.74,132.69,7.5363]
[1725540249071,7.5337,132.74,132.7,7.5357]
[1725540250270,16.6556992,132.76,132.7,18.839]
[1725540250473,7.5341,132.73,132.7,18.839]
[1725540250796,7.5341,132.73,132.69,7.5361]
[1725540250797,9.0356992,132.73,132.69,7.5363]
[1725540251081,7.5337,132.74,132.7,9.04271287]
[1725540251574,7.5337,132.74,132.71,1.5067971]
[1725540251876,22.6871,132.76,132.71,26.3726]
[1725540252079,20.0,132.75,132.71,26.3726]
[1725540252377,22.6871,132.76,132.72,7.5346]
[1725540252565,7.5328,132.76,132.72,7.5346]
[1725540253484,7.5328,132.76,132.72,9.04127256]
[1725540253775,7.5328,132.76,132.72,7.5346]
[1725540254081,7.532,132.77,132.73,7.534]
[1725540254261,29.0338992,132.76,132.72,7.5345]
[1725540254582,27.5325,132.76,132.72,7.5345]
[1725540255281,9.0343992,132.75,132.71,26.3726]
[1725540255459,20.0,132.76,132.71,26.3726]
[1725540255460,27.5325,132.76,132.72,7.5345]
[1725540255861,20.0,132.76,132.73,7.534]
[1725540256091,20.0,132.76,132.71,18.8376]
[1725540256255,7.532,132.77,132.73,7.5336]
[1725540256458,20.0,132.76,132.73,7.5336]
[1725540256791,20.0,132.76,132.74,7.5334]
[1725540256997,20.0,132.77,132.74,7.5334]
[1725540258679,20.0,132.77,132.73,18.835]
[1725540258680,7.5304,132.8,132.76,7.5323]
[1725540259359,7.85717595,132.83,132.74,67.5804]
[1725540259557,7.5286,132.83,132.77,18.8291]
[1725540259758,7.5286,132.83,132.79,7.5302]
[1725540260784,9.0293992,132.84,132.8,9.03585641]
[1725540261273,1.5013992,132.85,132.81,18.8232]
[1725540261695,9.0286992,132.85,132.81,18.8232]
[1725540263080,7.5279,132.84,132.8,7.5296]
[1725540263288,1.5013992,132.83,132.8,7.5296]
[1725540264285,7.529,132.82,132.78,18.8271]
[1725540264584,7.5296,132.81,132.78,18.8271]
[1725540264886,7.5296,132.81,132.77,7.5314]
[1725540265097,1.5013992,132.8,132.77,7.5314]
[1725540265294,9.0314992,132.8,132.75,18.8316]
[1725540265495,24.0836,132.81,132.76,7.5319]
[1725540265668,1.5013992,132.8,132.76,7.5319]
[1725540266672,24.0836,132.81,132.77,7.5314]
[1725540266898,16.554,132.81,132.77,7.5314]
[1725540267074,18.0553992,132.81,132.77,7.5314]